fUSD/lending_fUSD_20240508
["ID","MTS","AMOUNT","RATE_DAILY","PERIOD"]
[326661973,1715207461079,-1486.86,0.00027945,5]
[326661974,1715207461089,-500.0,0.00027945,5]
[326661975,1715207461098,-615.05,0.00027945,5]
[326661976,1715207461109,-500.0,0.00027945,5]
[326661977,1715207461119,-500.0,0.00027945,5]
[326661978,1715207461129,-343.26,0.00027945,5]
[326661979,1715207461138,-644.43,0.00027945,5]
[326661980,1715207461148,-326.08,0.00027945,5]
[326661981,1715207461157,-226.32,0.00027945,5]
[326661982,1715207461167,-567.88,0.00027945,5]
[326661983,1715207461177,-392.13,0.00027945,5]
[326661984,1715207461187,-502.80278207,0.00027945,2]
[326661985,1715207461196,-422.9,0.00027945,5]
[326661986,1715207461205,-463.82,0.00027945,5]
[326661987,1715207461215,-500.0,0.00027945,5]
[326661988,1715207461224,-500.0,0.00027945,5]
[326661989,1715207461234,-500.0,0.00027945,5]
[326661990,1715207461243,-182.78,0.00027945,5]
[326661991,1715207461253,-500.0,0.00027945,5]
[326661992,1715207461262,-406.36,0.00027945,5]
[326661993,1715207461271,-500.0,0.00027945,5]
[326661994,1715207461281,-500.0,0.00027945,5]
[326661995,1715207461291,-500.0,0.00027945,5]
[326661996,1715207461300,-340.73,0.00027945,5]
[326661997,1715207461310,-500.0,0.00027945,5]
[326661998,1715207461319,-220.73,0.00027945,5]
[326661999,1715207461329,-500.0,0.00027945,5]
[326662000,1715207461338,-500.0,0.00027945,5]
[326662001,1715207461348,-156.24,0.00027945,5]
[326662002,1715207461357,-500.0,0.00027945,5]
[326662003,1715207461367,-500.0,0.00027945,5]
[326662004,1715207461376,-1000.0,0.00027945,2]
[326662005,1715207461385,-500.0,0.00027945,5]
[326662006,1715207461395,-500.0,0.00027945,5]
[326662007,1715207461404,-504.86,0.00027945,5]
[326662008,1715207461414,-164.82,0.00027945,5]
[326662009,1715207461424,-500.0,0.00027945,5]
[326662010,1715207461433,-500.0,0.00027945,5]
[326662011,1715207461443,-500.0,0.00027945,5]
[326662012,1715207461452,-500.0,0.00027945,5]
[326662013,1715207461462,-500.0,0.00027945,5]
[326662014,1715207461472,-500.0,0.00027945,5]
[326662015,1715207461481,-500.0,0.00027945,5]
[326662016,1715207461491,-357.96,0.00027945,5]
[326662017,1715207461501,-500.0,0.00027945,5]
[326662018,1715207461510,-500.0,0.00027945,5]
[326662019,1715207461520,-500.0,0.00027945,5]
[326662020,1715207461530,-568.7,0.00027945,5]
[326662021,1715207461540,-500.0,0.00027945,5]
[326662022,1715207461549,-246.6,0.00027945,5]
[326662023,1715207461559,-500.0,0.00027945,5]
[326662024,1715207461569,-2597.35,0.00027945,5]
[326662025,1715207461579,-500.0,0.00027945,5]
[326662026,1715207461588,-223.21,0.00027945,5]
[326662027,1715207461598,-500.0,0.00027945,5]
[326662028,1715207461608,-500.0,0.00027945,5]
[326662029,1715207461617,-500.0,0.00027945,5]
[326662030,1715207461627,-264.57,0.00027945,5]
[326662031,1715207461637,-296.07,0.00027945,5]
[326662032,1715207461647,-500.0,0.00027945,2]
[326662033,1715207461656,-500.0,0.00027945,5]
[326662034,1715207461666,-566.83373583,0.00027945,5]
[326662035,1715207461676,-232.84,0.00027945,5]
[326662036,1715207461686,-153.67,0.00027945,5]
[326662037,1715207461696,-500.0,0.00027945,2]
[326662038,1715207461706,-175.15,0.00027945,5]
[326662039,1715207461715,-197.185138,0.00027945,7]
[326662040,1715207461725,-346.68,0.00027945,5]
[326662041,1715207461735,-500.0,0.00027945,5]
[326662042,1715207461744,-247.74,0.00027945,5]
[326662043,1715207461753,-1371.59,0.00027945,5]
[326662044,1715207461763,-500.0,0.00027945,5]
[326662045,1715207461773,-500.0,0.00027945,5]
[326662046,1715207461782,-500.0,0.00027945,5]
[326662047,1715207461796,-500.0,0.00027945,5]
[326662048,1715207461805,-500.0,0.00027945,5]
[326662049,1715207461814,-500.0,0.00027945,5]
[326662050,1715207461824,-500.0,0.00027945,5]
[326662051,1715207461835,-575.98265796,0.00027945,5]
[326662052,1715207461845,-989.31,0.00027945,5]
[326662053,1715207461855,-500.0,0.00027945,5]
[326662054,1715207461864,-500.0,0.00027945,5]
[326662055,1715207461875,-500.0,0.00027945,5]
[326662056,1715207461886,-500.0,0.00027945,5]
[326662057,1715207461895,-500.0,0.00027945,5]
[326662058,1715207461904,-1510.2,0.00027945,5]
[326662059,1715207461914,-500.0,0.00027945,5]
[326662060,1715207461924,-422.3,0.00027945,5]
[326662061,1715207461934,-500.0,0.00027945,5]
[326662062,1715207461944,-500.0,0.00027945,5]
[326662063,1715207461954,-500.0,0.00027945,5]
[326662064,1715207461964,-393.84,0.00027945,5]
[326662065,1715207461975,-500.0,0.00027945,5]
[326662066,1715207461985,-500.0,0.00027945,5]
[326662067,1715207461995,-500.0,0.00027945,5]
[326662068,1715207462004,-500.0,0.00027945,5]
[326662069,1715207462014,-2799.55,0.00027945,5]
[326662070,1715207462023,-500.0,0.00027945,5]
[326662071,1715207462033,-1388.07,0.00027945,5]
[326662072,1715207462042,-274.67,0.00027945,5]
[326662073,1715207462052,-500.0,0.00027945,5]
[326662074,1715207462063,-244.17,0.00027945,5]
[326662075,1715207462072,-780.43,0.00027945,5]
[326662076,1715207462081,-240.67,0.00027945,5]
[326662077,1715207462091,-500.0,0.00027945,5]
[326662078,1715207462101,-613.02,0.00027945,5]
[326662079,1715207462111,-233.28,0.00027945,5]
[326662080,1715207462120,-500.0,0.00027945,5]
[326662081,1715207462130,-500.0,0.00027945,2]
[326662082,1715207462140,-2203.33,0.00027945,5]
[326662083,1715207462151,-500.0,0.00027945,5]
[326662084,1715207462160,-151.0,0.00027945,7]
[326662085,1715207462170,-1213.06,0.00027945,5]
[326662086,1715207462179,-311.28,0.00027945,5]
[326662087,1715207462189,-201.358263,0.00027945,7]
[326662088,1715207462199,-460.87,0.00027945,5]
[326662089,1715207462208,-500.0,0.00027945,5]
[326662090,1715207462218,-469.39,0.00027945,5]
[326662091,1715207462228,-151.0,0.00027945,7]
[326662092,1715207462237,-165.26,0.00027945,5]
[326662093,1715207462246,-201.358263,0.00027945,7]
[326662094,1715207462257,-500.0,0.00027945,5]
[326662095,1715207462266,-500.0,0.00027945,5]
[326662096,1715207462276,-577.66,0.00027945,5]
[326662097,1715207462285,-500.0,0.00027945,5]
[326662098,1715207462295,-295.966388,0.00027945,7]
[326662099,1715207462304,-1130.29,0.00027945,5]
[326662100,1715207462314,-219.48,0.00027945,5]
[326662101,1715207462323,-500.0,0.00027945,5]
[326662102,1715207462332,-372.19,0.00027945,5]
[326662103,1715207462342,-2068.76,0.00027945,5]
[326662104,1715207462351,-500.0,0.00027945,5]
[326662105,1715207462361,-500.0,0.00027945,5]
[326662106,1715207462371,-295.966388,0.00027945,7]
[326662107,1715207462381,-500.0,0.00027945,5]
[326662108,1715207462391,-500.0,0.00027945,5]
[326662109,1715207462400,-500.0,0.00027945,5]
[326662110,1715207462410,-500.0,0.00027945,5]
[326662111,1715207462419,-500.0,0.00027945,5]
[326662112,1715207462428,-500.0,0.00027945,5]
[326662113,1715207462438,-500.0,0.00027945,5]
[326662114,1715207462448,-1025.07,0.00027945,5]
[326662115,1715207462458,-500.0,0.00027945,5]
[326662116,1715207462467,-408.25,0.00027945,5]
[326662117,1715207462477,-1224.05,0.00027945,5]
[326662118,1715207462486,-326.06,0.00027945,5]
[326662119,1715207462496,-509.5990891,0.00027945,5]
[326662120,1715207462506,-500.0,0.00027945,5]
[326662121,1715207462515,-1296.14,0.00027945,5]
[326662122,1715207462525,-500.0,0.00027945,5]
[326662123,1715207462534,-457.52542097,0.00027945,5]
[326662124,1715207462544,-500.0,0.00027945,5]
[326662125,1715207462554,-336.16,0.00027945,5]
[326662126,1715207462564,-643.42,0.00027945,5]
[326662127,1715207462573,-500.0,0.00027945,5]
[326662128,1715207462583,-500.0,0.00027945,5]
[326662129,1715207462593,-754.94,0.00027945,5]
[326662130,1715207462603,-346.65,0.00027945,5]
[326662131,1715207462613,-617.54,0.00027945,5]
[326662132,1715207462625,-433.52,0.00027945,5]
[326662133,1715207462634,-312.16958944,0.00027945,5]
[326662134,1715207462644,-500.0,0.00027945,5]
[326662135,1715207462654,-596.55,0.00027945,5]
[326662136,1715207462663,-200.24167799,0.00027945,5]
[326662137,1715207462672,-1131.17,0.00027945,5]
[326662138,1715207462682,-500.0,0.00027945,5]
[326662139,1715207462692,-474.23340357,0.00027945,5]
[326662140,1715207462702,-1669.12,0.00027945,5]
[326662141,1715207462711,-500.0,0.00027945,5]
[326662142,1715207462722,-510.6343672,0.00027945,5]
[326662143,1715207462731,-500.0,0.00027945,5]
[326662144,1715207462741,-356.8,0.00027945,5]
[326662145,1715207462751,-500.0,0.00027945,2]
[326662146,1715207462761,-540.2,0.00027945,5]
[326662147,1715207462770,-510.27483941,0.00027945,5]
[326662148,1715207462779,-458.76,0.00027945,5]
[326662149,1715207462797,-553.6,0.00027945,5]
[326662150,1715207462807,-330.48323264,0.00027945,5]
[326662151,1715207462817,-500.0,0.00027945,5]
[326662152,1715207462827,-168.61,0.00027945,5]
[326662153,1715207462836,-500.0,0.00027945,5]
[326662154,1715207462848,-181.11,0.00027945,5]
[326662155,1715207462859,-294.82,0.00027945,5]
[326662156,1715207462869,-500.0,0.00027945,5]
[326662157,1715207462880,-479.22,0.00027945,5]
[326662158,1715207462889,-1528.3,0.00027945,5]
[326662159,1715207462943,-500.0,0.00027945,2]
[326662160,1715207462953,-500.0,0.00027945,5]
[326662161,1715207462962,-500.0,0.00027945,5]
[326662162,1715207462972,-500.0,0.00027945,5]
[326662163,1715207462982,-500.0,0.00027945,5]
[326662164,1715207462991,-500.0,0.00027945,5]
[326662165,1715207463002,-500.0,0.00027945,5]
[326662166,1715207463011,-343.24,0.00027945,5]
[326662167,1715207463021,-523.47,0.00027945,5]
[326662168,1715207463030,-548.78,0.00027945,5]
[326662169,1715207463040,-500.0,0.00027945,5]
[326662170,1715207463050,-545.76,0.00027945,5]
[326662171,1715207463062,-527.69,0.00027945,5]
[326662172,1715207463071,-293.01,0.00027945,5]
[326662173,1715207463080,-500.0,0.00027945,5]
[326662174,1715207463090,-373.1,0.00027945,5]
[326662175,1715207463099,-500.0,0.00027945,5]
[326662176,1715207463114,-500.0,0.00027945,5]
[326662177,1715207463123,-2135.84,0.00027945,5]
[326662178,1715207463133,-1348.39,0.00027945,5]
[326662179,1715207463143,-501.72,0.00027945,5]
[326662180,1715207463154,-593.04,0.00027945,5]
[326662181,1715207463164,-500.0,0.00027945,5]
[326662182,1715207463174,-500.0,0.00027945,5]
[326662183,1715207463183,-548.28,0.00027945,5]
[326662184,1715207463193,-228.07,0.00027945,5]
[326662185,1715207463203,-217.94,0.00027945,5]
[326662186,1715207463212,-500.0,0.00027945,5]
[326662187,1715207463221,-500.0,0.00027945,5]
[326662188,1715207463231,-500.0,0.00027945,5]
[326662189,1715207463241,-500.0,0.00027945,5]
[326662190,1715207463251,-500.0,0.00027945,5]
[326662191,1715207463261,-2922.46,0.00027945,5]
[326662192,1715207463271,-500.0,0.00027945,5]
[326662193,1715207463282,-500.0,0.00027945,5]
[326662194,1715207463291,-500.0,0.00027945,5]
[326662195,1715207463302,-500.0,0.00027945,5]
[326662196,1715207463311,-500.0,0.00027945,5]
[326662197,1715207463321,-500.0,0.00027945,5]
[326662198,1715207463330,-160.33,0.00027945,5]
[326662199,1715207463340,-500.0,0.00027945,5]
[326662200,1715207463349,-500.0,0.00027945,5]
[326662201,1715207463365,-500.0,0.00027945,5]
[326662202,1715207463375,-500.0,0.00027945,5]
[326662203,1715207463384,-166.76,0.00027945,5]
[326662204,1715207463393,-500.0,0.00027945,5]
[326662205,1715207463403,-500.0,0.00027945,5]
[326662206,1715207463412,-292.67,0.00027945,5]
[326662207,1715207463422,-1359.38,0.00027945,5]
[326662208,1715207463431,-223.786802,0.00027945,7]
[326662209,1715207463440,-1504.27,0.00027945,5]
[326662210,1715207463450,-531.20770038,0.00027945,5]
[326662211,1715207463460,-500.0,0.00027945,5]
[326662212,1715207463470,-500.0,0.00027945,5]
[326662213,1715207463480,-760.09,0.00027945,5]
[326662214,1715207463490,-500.0,0.00027945,5]
[326662215,1715207463500,-500.0,0.00027945,5]
[326662216,1715207463510,-151.0,0.00027945,7]
[326662217,1715207463519,-500.0,0.00027945,5]
[326662218,1715207463528,-500.0,0.00027945,5]
[326662219,1715207463537,-500.0,0.00027945,5]
[326662220,1715207463547,-162.05,0.00027945,5]
[326662221,1715207463556,-500.0,0.00027945,5]
[326662222,1715207463566,-623.82,0.00027945,5]
[326662223,1715207463575,-500.0,0.00027945,5]
[326662224,1715207463586,-248.63,0.00027945,5]
[326662225,1715207463595,-620.98,0.00027945,5]
[326662226,1715207463609,-500.0,0.00027945,5]
[326662227,1715207463618,-500.0,0.00027945,5]
[326662228,1715207463628,-889.65,0.00027945,5]
[326662229,1715207463637,-500.0,0.00027945,5]
[326662230,1715207463646,-500.0,0.00027945,5]
[326662231,1715207463657,-276.17,0.00027945,5]
[326662232,1715207463666,-357.25,0.00027945,5]
[326662233,1715207463675,-500.0,0.00027945,5]
[326662234,1715207463684,-500.0,0.00027945,5]
[326662235,1715207463694,-151.0,0.00027945,7]
[326662236,1715207463703,-151.0,0.00027945,7]
[326662237,1715207463712,-500.0,0.00027945,5]
[326662238,1715207463722,-500.0,0.00027945,5]
[326662239,1715207463733,-500.0,0.00027945,5]
[326662240,1715207463742,-527.7,0.00027945,5]
[326662241,1715207463752,-538.79,0.00027945,5]
[326662242,1715207463761,-500.0,0.00027945,5]
[326662243,1715207463770,-500.0,0.00027945,5]
[326662244,1715207463780,-500.0,0.00027945,5]
[326662245,1715207463792,-500.0,0.00027945,5]
[326662246,1715207463803,-500.0,0.00027945,5]
[326662247,1715207463813,-500.0,0.00027945,5]
[326662248,1715207463823,-503.75,0.00027945,5]
[326662249,1715207463832,-330.11,0.00027945,5]
[326662250,1715207463843,-1237.79,0.00027945,5]
[326662251,1715207463852,-375.76,0.00027945,5]
[326662252,1715207463866,-500.0,0.00027945,5]
[326662253,1715207463876,-500.0,0.00027945,5]
[326662254,1715207463885,-636.21,0.00027945,5]
[326662255,1715207463895,-500.0,0.00027945,5]
[326662256,1715207463904,-500.0,0.00027945,5]
[326662257,1715207463913,-898.36,0.00027945,5]
[326662258,1715207463923,-500.0,0.00027945,5]
[326662259,1715207463931,-1627.54,0.00027945,5]
[326662260,1715207463941,-921.77,0.00027945,5]
[326662261,1715207463950,-500.0,0.00027945,5]
[326662262,1715207463960,-1093.28,0.00027945,5]
[326662263,1715207463969,-500.0,0.00027945,5]
[326662264,1715207463978,-667.53,0.00027945,5]
[326662265,1715207463989,-500.0,0.00027945,5]
[326662266,1715207463998,-500.0,0.00027945,5]
[326662267,1715207464008,-500.0,0.00027945,5]
[326662268,1715207464018,-500.0,0.00027945,5]
[326662269,1715207464028,-500.0,0.00027945,5]
[326662270,1715207464037,-1936.02,0.00027945,5]
[326662271,1715207464047,-4643.91,0.00027945,5]
[326662272,1715207464057,-500.0,0.00027945,5]
[326662273,1715207464066,-1198.78,0.00027945,5]
[326662274,1715207464076,-1049.94,0.00027945,5]
[326662275,1715207464086,-500.0,0.00027945,5]
[326662276,1715207464096,-847.69,0.00027945,5]
[326662277,1715207464108,-552.15,0.00027945,5]
[326662278,1715207464118,-3011.44,0.00027945,5]
[326662279,1715207464127,-740.77,0.00027945,5]
[326662280,1715207464136,-500.0,0.00027945,5]
[326662281,1715207464145,-645.64,0.00027945,5]
[326662282,1715207464155,-681.96,0.00027945,5]
[326662283,1715207464164,-507.77,0.00027945,5]
[326662284,1715207464174,-503.89,0.00027945,5]
[326662285,1715207464184,-587.9,0.00027945,5]
[326662286,1715207464194,-500.0,0.00027945,5]
[326662287,1715207464204,-500.0,0.00027945,5]
[326662288,1715207464213,-500.0,0.00027945,5]
[326662289,1715207464223,-261.33,0.00027945,5]
[326662290,1715207464235,-500.0,0.00027945,5]
[326662291,1715207464245,-500.0,0.00027945,5]
[326662292,1715207464255,-2056.06,0.00027945,5]
[326662293,1715207464264,-964.77,0.00027945,5]
[326662294,1715207464273,-500.0,0.00027945,5]
[326662295,1715207464283,-150.0,0.00027945,5]
[326662296,1715207464293,-431.25,0.00027945,5]
[326662297,1715207464303,-500.0,0.00027945,5]
[326662298,1715207464313,-500.0,0.00027945,5]
[326662299,1715207464322,-1733.85,0.00027945,5]
[326662300,1715207464332,-500.0,0.00027945,5]
[326662301,1715207464341,-500.0,0.00027945,5]
[326662302,1715207464351,-598.13,0.00027945,5]
[326662303,1715207464365,-500.0,0.00027945,5]
[326662304,1715207464375,-599.57,0.00027945,5]
[326662305,1715207464385,-2316.94,0.00027945,5]
[326662306,1715207464394,-500.0,0.00027945,5]
[326662307,1715207464404,-500.0,0.00027945,5]
[326662308,1715207464414,-655.25,0.00027945,5]
[326662309,1715207464423,-271.17,0.00027945,5]
[326662310,1715207464432,-2843.32,0.00027945,5]
[326662311,1715207464442,-500.0,0.00027945,5]
[326662312,1715207464451,-500.0,0.00027945,5]
[326662313,1715207464461,-500.0,0.00027945,5]
[326662314,1715207464471,-500.0,0.00027945,5]
[326662315,1715207464482,-500.0,0.00027945,5]
[326662316,1715207464492,-1914.75,0.00027945,5]
[326662317,1715207464502,-500.0,0.00027945,5]
[326662318,1715207464511,-557.82,0.00027945,5]
[326662319,1715207464521,-617.58,0.00027945,5]
[326662320,1715207464530,-500.0,0.00027945,5]
[326662321,1715207464540,-500.0,0.00027945,5]
[326662322,1715207464551,-500.0,0.00027945,5]
[326662323,1715207464560,-500.0,0.00027945,5]
[326662324,1715207464576,-2179.57,0.00027945,5]
[326662325,1715207464586,-616.62,0.00027945,5]
[326662326,1715207464596,-500.0,0.00027945,5]
[326662327,1715207464607,-595.73,0.00027945,5]
[326662328,1715207464617,-500.0,0.00027945,5]
[326662329,1715207464626,-500.0,0.00027945,5]
[326662330,1715207464636,-500.0,0.00027945,5]
[326662331,1715207464646,-912.72,0.00027945,5]
[326662332,1715207464656,-561.52,0.00027945,5]
[326662333,1715207464666,-500.0,0.00027945,5]
[326662334,1715207464675,-7889.76,0.00027945,5]
[326662335,1715207464685,-500.0,0.00027945,5]
[326662336,1715207464695,-851.67,0.00027945,5]
[326662337,1715207464705,-500.0,0.00027945,5]
[326662338,1715207464715,-500.0,0.00027945,5]
[326662339,1715207464724,-521.93,0.00027945,5]
[326662340,1715207464734,-500.0,0.00027945,5]
[326662341,1715207464743,-536.22,0.00027945,5]
[326662342,1715207464753,-230.34,0.00027945,5]
[326662343,1715207464763,-500.0,0.00027945,5]
[326662344,1715207464773,-679.62,0.00027945,5]
[326662345,1715207464784,-1013.97,0.00027945,5]
[326662346,1715207464797,-500.0,0.00027945,5]
[326662347,1715207464807,-484.22,0.00027945,5]
[326662348,1715207464818,-500.0,0.00027945,5]
[326662349,1715207464828,-517.74,0.00027945,5]
[326662350,1715207464839,-500.0,0.00027945,5]
[326662351,1715207464848,-1447.25,0.00027945,5]
[326662352,1715207464860,-1134.94,0.00027945,5]
[326662353,1715207464871,-500.0,0.00027945,5]
[326662354,1715207464880,-500.0,0.00027945,5]
[326662355,1715207464891,-500.0,0.00027945,5]
[326662356,1715207464900,-429.36,0.00027945,5]
[326662357,1715207464910,-500.0,0.00027945,5]
[326662358,1715207464919,-500.0,0.00027945,5]
[326662359,1715207464929,-556.2,0.00027945,5]
[326662360,1715207464940,-500.0,0.00027945,5]
[326662361,1715207464950,-500.0,0.00027945,5]
[326662362,1715207464960,-1454.68,0.00027945,5]
[326662363,1715207464970,-1851.13,0.00027945,5]
[326662364,1715207464980,-1121.41,0.00027945,5]
[326662365,1715207464990,-500.0,0.00027945,5]
[326662366,1715207465000,-500.0,0.00027945,5]
[326662367,1715207465010,-500.0,0.00027945,5]
[326662368,1715207465019,-769.76,0.00027945,5]
[326662369,1715207465029,-500.0,0.00027945,5]
[326662370,1715207465038,-500.0,0.00027945,5]
[326662371,1715207465048,-8565.34,0.00027945,5]
[326662372,1715207465060,-511.28303119,0.00027945,5]
[326662373,1715207465070,-500.0,0.00027945,5]
[326662374,1715207465080,-1657.56,0.00027945,5]
[326662375,1715207465089,-635.83,0.00027945,5]
[326662376,1715207465099,-690.76,0.00027945,5]
[326662377,1715207465110,-547.86,0.00027945,5]
[326662378,1715207465120,-500.0,0.00027945,5]
[326662379,1715207465129,-1236.85,0.00027945,5]
[326662380,1715207465139,-500.0,0.00027945,5]
[326662381,1715207465149,-227.16,0.00027945,5]
[326662382,1715207465159,-4438.24,0.00027945,5]
[326662383,1715207465169,-500.0,0.00027945,5]
[326662384,1715207465180,-500.0,0.00027945,5]
[326662385,1715207465190,-14449.93,0.00027945,5]
[326662386,1715207465199,-500.0,0.00027945,5]
[326662387,1715207465208,-515.96169355,0.00027945,5]
[326662388,1715207465218,-500.0,0.00027945,5]
[326662389,1715207465228,-500.0,0.00027945,5]
[326662390,1715207465238,-500.0,0.00027945,5]
[326662391,1715207465248,-851.79,0.00027945,5]
[326662392,1715207465257,-500.0,0.00027945,5]
[326662393,1715207465267,-500.0,0.00027945,5]
[326662394,1715207465277,-500.0,0.00027945,5]
[326662395,1715207465286,-500.0,0.00027945,5]
[326662396,1715207465296,-181.31,0.00027945,5]
[326662397,1715207465306,-500.0,0.00027945,5]
[326662398,1715207465315,-748.55,0.00027945,5]
[326662399,1715207465325,-749.56,0.00027945,5]
[326662400,1715207465335,-500.0,0.00027945,2]
[326662401,1715207465345,-500.0,0.00027945,5]
[326662402,1715207465357,-500.0,0.00027945,5]
[326662403,1715207465367,-500.0,0.00027945,5]
[326662404,1715207465376,-663.18,0.00027945,5]
[326662405,1715207465386,-861.09,0.00027945,5]
[326662406,1715207465396,-500.0,0.00027945,5]
[326662407,1715207465405,-500.0,0.00027945,5]
[326662408,1715207465415,-1185.86,0.00027945,5]
[326662409,1715207465425,-3002.74,0.00027945,5]
[326662410,1715207465434,-534.57,0.00027945,5]
[326662411,1715207465444,-155.44,0.00027945,5]
[326662412,1715207465453,-468.39,0.00027945,5]
[326662413,1715207465463,-500.0,0.00027945,5]
[326662414,1715207465472,-593.49296907,0.00027945,5]
[326662415,1715207465482,-500.0,0.00027945,5]
[326662416,1715207465492,-500.0,0.00027945,5]
[326662417,1715207465502,-500.0,0.00027945,5]
[326662418,1715207465511,-500.0,0.00027945,2]
[326662419,1715207465522,-568.89,0.00027945,5]
[326662420,1715207465531,-500.0,0.00027945,5]
[326662421,1715207465541,-362.67,0.00027945,5]
[326662422,1715207465551,-737.92,0.00027945,5]
[326662423,1715207465560,-209.48,0.00027945,5]
[326662424,1715207465570,-500.0,0.00027945,5]
[326662425,1715207465579,-500.0,0.00027945,5]
[326662426,1715207465590,-1985.13,0.00027945,5]
[326662427,1715207465599,-500.0,0.00027945,5]
[326662428,1715207465610,-500.0,0.00027945,5]
[326662429,1715207465619,-2792.76,0.00027945,5]
[326662430,1715207465628,-500.0,0.00027945,5]
[326662431,1715207465638,-500.0,0.00027945,5]
[326662432,1715207465648,-1000.0,0.0002797,2]
[326662433,1715207465659,-4990.39766021,0.00027973,2]
[326662434,1715207465669,-168.271257,0.00027973,7]
[326662435,1715207465680,-168.271257,0.00027973,7]
[326662436,1715207465689,-151.0,0.00027973,7]
[326662437,1715207465701,-174.543055,0.00027973,7]
[326662438,1715207465711,-150.0,0.00027993,2]
[326662439,1715207465721,-1800.0,0.00028,29]
[326662440,1715207465731,-969.0,0.00028,12]
[326662441,1715207465740,-599.9999981,0.00028,29]
[326662442,1715207465750,-2143.63056,0.00028,2]
[326662443,1715207465760,-500.0,0.00028,3]
[326662444,1715207465770,-150.0,0.00028013,2]
[326662445,1715207465780,-150.0,0.00028041,2]
[326662446,1715207465791,-150.0,0.00028058,2]
[326662447,1715207465803,-150.0,0.00028066,2]
[326662448,1715207465813,-150.38257666,0.00028069,2]
[326662449,1715207465823,-2862.51114419,0.000281,15]
[326662450,1715207465833,-150.0,0.000281,2]
[326662451,1715207465843,-150.0,0.00028118,2]
[326662452,1715207465853,-157.050906,0.00028148,12]
[326662453,1715207465863,-1016.27272557,0.00028184,2]
[326662454,1715207465874,-196.63,0.000282,2]
[326662455,1715207465884,-150.0,0.00028206,2]
[326662456,1715207465894,-168.95757125,0.00028207,2]
[326662457,1715207465904,-165.13605643,0.00028208,3]
[326662458,1715207465914,-200.0,0.00028265,2]
[326662459,1715207465924,-1000.0,0.00028265,10]
[326662460,1715207465934,-500.0,0.00028265,2]
[326662461,1715207465944,-153.72507023,0.00028279,2]
[326662462,1715207465957,-11936.822903,0.000283,2]
[326662463,1715207465967,-150.0,0.00028307,2]
[326662464,1715207465977,-150.0,0.00028369,2]
[326662465,1715207465987,-150.0,0.000284,5]
[326662466,1715207465997,-150.0,0.00028411,2]
[326662467,1715207466007,-153.72507023,0.00028418,2]
[326662468,1715207466017,-157.050906,0.00028448,14]
[326662469,1715207466027,-700.0,0.0002847,2]
[326662470,1715207466036,-700.0,0.0002847,2]
[326662471,1715207466046,-400.0,0.0002847,2]
[326662472,1715207466058,-700.0,0.0002847,2]